Cogmind - Beta 16.1 @@@ ROGUE MODE // 2026.03.14 @ 17:07:27 Player: cptwinky Result: Destroyed by RG-7MN(R) with Subdweller Beam Cannon Performance ------------- Evolutions (0) 0 Regions Visited (2) 400 Robots Destroyed (24) 120 Value Destroyed (712) 712 Prototype IDs (0) 0 Alien Tech Used (0) 0 Bonus (0) 0 TOTAL SCORE: 1232 Bonus ------- None Cogmind --------- Core Integrity 0/250 Matter 284/300 Energy 81/100 System Corruption 0% Temperature Cool (9) Movement Treading (260) Ox1 Location -10/Subcaves Parts ------- > --- POWER (1) -------- (None) > --- PROPULSION (2) --- Spiked Treads > --- UTILITY (2) ------ Large Storage Unit > --- WEAPON (2) ------- Subdweller Laser Subdweller Machine Gun > --- INVENTORY (15) --- Subdweller Power Source Subdweller Power Source Compact Wheel High-capacity Matter Pod (200) Structural Scanner Seismic Detector Cobbler Unit Subdweller Laser Assault Rifle Battle Rifle Datajack Mining Laser Peak State ------------ > --- POWER ------------ Ion Engine > --- PROPULSION ------- Light Treads Light Treads > --- UTILITY ---------- Improved Heat Sink Large Storage Unit > --- WEAPON ----------- Subdweller Laser Subdweller Machine Gun > --- INVENTORY -------- Subdweller Power Source Subdweller Power Source Spiked Treads Compact Wheel High-capacity Matter Pod Structural Scanner Seismic Detector Cobbler Unit Subdweller Laser Assault Rifle Battle Rifle Datajack Mining Laser [Rating: 13] Favorites ----------- Power Ion Engine Engine Ion Engine Propulsion Light Treads Treads Light Treads Utility Large Storage Unit Device Seismic Detector Storage Large Storage Unit Protection Propulsion Shielding Weapon Light Cannon Energy Gun Subdweller Laser Ballistic Gun Assault Rifle Ballistic Cannon Light Cannon Special Weapon Mining Laser Build | -11 -10 -10 ------- Run | Yrd Mat Sub Slots Evolved . | . . . Power . | . . . Propulsion . | . . . Utility . | . . . Weapon . | . . . Parts Attached 23 | 6 6 11 Power 2 | 1 . 1 Engine 2 | 1 . 1 Core . | . . . Reactor . | . . . Propulsion 4 | 2 . 2 Treads 4 | 2 . 2 Leg . | . . . Wheel . | . . . Hover . | . . . Flight . | . . . Utility 7 | 1 3 3 Device 3 | . 1 2 Storage 2 | 1 1 . Processor . | . . . Hackware . | . . . Protection 2 | . 1 1 Artifact . | . . . Weapon 10 | 2 3 5 Energy Gun 2 | . . 2 Energy Cannon . | . . . Ballistic Gun 5 | 2 1 2 Ballistic Cannon 2 | . 2 . Launcher . | . . . Special Weapon 1 | . . 1 Impact Weapon . | . . . Slashing Weapon . | . . . Piercing Weapon . | . . . Special Melee Weapon . | . . . Unidentified Prototypes . | . . . Parts Lost 11 | . . 11 Power 2 | . . 2 Propulsion 2 | . . 2 Utility 3 | . . 3 Weapon 4 | . . 4 Highest Loss Streak 5 | . . 5 To Critical Strikes 1 | . . 1 Average Backups 12 | 4 12 13 Power 1 | . 1 1 Propulsion 2 | 2 3 2 Utility 3 | . 3 4 Weapon 3 | 1 4 3 Tool/Special . | . . . Unused Backups 14 | . 2 12 Power 2 | . . 2 Propulsion 3 | . 1 2 Utility 3 | . . 3 Weapon 5 | . 1 4 Tool/Special 1 | . . 1 Average Slot Usage (%) 97 | . 93 99 Engine 13 | . 14 13 Treads 27 | . 28 27 Device 2 | . 1 4 Storage 14 | . 14 14 Protection 8 | . 7 9 Energy Gun 2 | . . 4 Ballistic Gun 14 | . 11 16 Ballistic Cannon 10 | . 16 5 Special Weapon 1 | . . 1 Peak Build Rating 13 | 6 8 13 Average Rating 8 | 5 7 9 On Entrance 4 | . 6 8 Avg Prop Armor Cover (%) . | . . . Naked Turns . | . . . Heaviest Build 34 | 12 32 34 Greatest Support 40 | 40 40 40 Greatest Overweight (x) . | . . . Average Overweight (x) . | . . . Largest Inventory Capacity 15 | 8 15 15 Average Capacity 13 | 7 13 15 Most Carried 15 | 7 15 15 Average Carried 12 | 4 12 13 Final Capacity 15 | 8 15 15 Final Carried 15 | 7 15 13 Class Distribution -------------------- 100% | Mutant Dominant Class ---------------- Mutant | -10/Materials Mutant | -10/Subcaves Resources | -11 -10 -10 ----------- Run | Yrd Mat Sub Matter Collected 1045 | 294 421 330 Remotely . | . . . Salvage Created 721 | 117 427 177 Parts 51 | 9 33 9 Haulers Intercepted 1 | . 1 . Recyclers Shooed 3 | 1 2 . Parts Field Recycled . | . . . Retrieved Matter . | . . . Parts Self-Destructed 7 | . . 7 Prevented . | . . . Parts Restored . | . . . Kills | -11 -10 -10 ------- Run | Yrd Mat Sub Combat Hostiles Destroyed 17 | . 9 8 Guns 9 | . 2 7 Cannons 8 | . 7 1 Classes Destroyed 7 | 2 4 1 Tunneler 2 | 2 . . Hauler 1 | . 1 . Recycler 2 | 1 1 . Operator 1 | . 1 . Watcher 1 | . 1 . Grunt 9 | . 9 . Subdweller 8 | . . 8 Best Kill Streak 4 | 2 4 1 Combat Bots Only 4 | . 4 1 Max Kills in Single Turn 1 | 1 1 1 Gunslinging . | . . . Exploded . | . . . Melee . | . . . Uniques/NPCs Destroyed . | . . . Combat | -11 -10 -10 -------- Run | Yrd Mat Sub Hostile Shots Fired 84 | . 23 61 Missed 20 | . 7 13 Hits 64 | . 16 48 Projectile 64 | . 16 48 AOE 1 | . . 1 Critical Strikes 2 | . . 2 Actively Blocked 1 | . . 1 Damage Taken 1273 | . 189 1084 Core 269 | . 33 236 Absorbed by Shields . | . . . Redirected to Shielding 109 | . 18 91 Core Remaining (%) 100 | 100 . . Volleys Fired 101 | 17 35 49 Largest 2 | 2 2 2 Hottest 100 | 40 60 100 Shots Fired 192 | 34 70 88 Gun 129 | 34 33 62 Cannon 53 | . 37 16 Launcher . | . . . Special 10 | . . 10 Kinetic 155 | 34 70 51 Thermal 37 | . . 37 Explosive . | . . . Electromagnetic . | . . . Robot Hit Streak 20 | 7 9 20 Robot Miss Streak 4 | 3 4 1 Penetration Max . | . . . Secondary Targets . | . . . Shots Hit Robots 137 | 22 47 68 Core Hits 45 | 6 22 17 Critical Kills 2 | 1 1 . Critical Parts Destroyed . | . . . Critical Strikes 4 | 1 1 2 Destroy 2 | 1 1 . Blast 2 | . . 2 Melee Attacks . | . . . Impact . | . . . Slashing . | . . . Piercing . | . . . Sneak Attacks . | . . . Combat Hostiles . | . . . Follow-up Attacks . | . . . Damage Inflicted 2265 | 187 788 1290 Guns 1515 | 187 277 1051 Cannons 691 | . 452 239 Explosions . | . . . Melee . | . . . Ramming 59 | . 59 . Kinetic 1816 | 187 729 900 Thermal 390 | . . 390 Explosive . | . . . Electromagnetic . | . . . Impact . | . . . Slashing . | . . . Piercing . | . . . Highest Corruption . | . . . Average Corruption . | . . . Corruption Purged . | . . . Corruption Blocked . | . . . Overload Shots . | . . . Overflow Damage . | . . . Projectiles . | . . . Explosions . | . . . Melee . | . . . Knockbacks 11 | . 8 3 Impact . | . . . Kinetic 11 | . 8 3 Secondary . | . . . Self-Inflicted Damage . | . . . Shots . | . . . Rammed 6 | . 6 . Targets Rammed 6 | . 6 . Kicked . | . . . Crushed . | . . . Highest Temperature 7 | . 7 . Average Temperature 2 | . 2 . Received Heat Transfer 225 | . 108 117 Siege Activations . | . . . Martial Activations . | . . . Shielding Activations . | . . . Robots Disrupted . | . . . Combat Hostiles . | . . . Robots Corrupted . | . . . Combat Hostiles . | . . . Parts Fried . | . . . Impact Corruptions . | . . . Robots Melted . | . . . Combat Hostiles . | . . . Parts Melted . | . . . Heat Transferred 706 | . . 706 Parts Sabotaged . | . . . Parts Stolen . | . . . Parts Stripped . | . . . Power Chain Reactions . | . . . Alert | -11 -10 -10 ------- Run | Yrd Mat Sub Maximum Alert Level . | . . . Low Security (%) 100 | 100 100 . Level 1 . | . . . Level 2 . | . . . Level 3 . | . . . Level 4 . | . . . Level 5 . | . . . High Security . | . . . Max Security . | . . . Peak Influence 111 | 5 111 . Initial . | . . . Average 24 | 1 29 . Influence Increases 291 | 15 276 . Destroy 0b10 Robot/C 180 | . 180 . Destroy 0b10 Robot/NC 35 | 15 20 . Destroy Leader 54 | . 54 . Successful Hack 20 | . 20 . Destroy Structure 2 | . 2 . Influence Decreases 291 | 15 250 26 Entered New Map 14 | . . 14 Time Decay 277 | 15 250 12 Squads Dispatched 3 | . 3 . Investigation 1 | . 1 . Extermination . | . . . Reinforcement 2 | . 2 . Assault . | . . . Garrison . | . . . Intercept . | . . . Searches Triggered . | . . . Construction Impeded . | . . . Haulers Reinforced . | . . . Active Scanning Responses . | . . . Cargo Convoy Interrupts . | . . . Stealth | -11 -10 -10 --------- Run | Yrd Mat Sub Distress Signals 1 | . 1 . Communications Jammed . | . . . Distress Signals . | . . . Times Spotted 27 | . 15 12 Peak Tracking Total 3 | . 3 3 Tactical Retreats . | . . . Traps | -11 -10 -10 ------- Run | Yrd Mat Sub Traps Triggered 1 | . 1 . Indirectly . | . . . Trap Hack Attempts . | . . . Triggered . | . . . Disarmed . | . . . Reprogrammed . | . . . Reused 2 | . . 2 Traps Extracted . | . . . Installed 2 | . . 2 Triggered . | . . . Most Traps Carried 2 | . . 2 Machines | -11 -10 -10 ---------- Run | Yrd Mat Sub Machines Disabled . | . . . Max in Single Turn . | . . . Machines Repaired . | . . . Machines Dismantled . | . . . Machines Sabotaged . | . . . Overloaded Fab Kills . | . . . Hacking | -11 -10 -10 --------- Run | Yrd Mat Sub Machines Accessed 4 | . 4 . Terminals 3 | . 3 . Fabricators . | . . . Repair Stations . | . . . Recycling Units 1 | . 1 . Scanalyzers . | . . . Garrison Access . | . . . Total Hacks 10 | . 10 . Successful 3 | . 3 . Failed 7 | . 7 . Catastrophic . | . . . Database Lockouts . | . . . Manual 6 | . 6 . Terminals 7 | . 7 . Fabricators . | . . . Repair Stations . | . . . Recycling Units 3 | . 3 . Scanalyzers . | . . . Garrison Access . | . . . Terminal Hacks 2 | . 2 . Robot Analysis 1 | . 1 . Locate Traps 1 | . 1 . Fabricator Hacks . | . . . Repair Station Hacks . | . . . Recycling Unit Hacks 1 | . 1 . Retrieve Components 1 | . 1 . Scanalyzer . | . . . Garrison Access Hacks . | . . . Unauthorized Hacks . | . . . Terminals . | . . . Fabricators . | . . . Repair Stations . | . . . Recycling Units . | . . . Scanalyzers . | . . . Garrison Access . | . . . Data Cores Recovered . | . . . Used . | . . . Hacking Detections 4 | . 4 . Full Trace Events . | . . . Feedback Events . | . . . Feedback Blocked . | . . . Robot Schematics Acquired . | . . . Robots Built . | . . . Authchips . | . . . Time . | . . . Total Robot Build Rating . | . . . Part Schematics Acquired . | . . . Parts Built . | . . . Authchips . | . . . Time . | . . . Total Part Build Rating . | . . . Part Studies Acquired . | . . . Parts Repaired . | . . . Time . | . . . Parts Recycled . | . . . Recycled Matter . | . . . Retrieved Matter . | . . . Retrieved Components 7 | . 7 . Parts Scanalyzed . | . . . Part Schematics Acquired . | . . . Parts Damaged . | . . . Bothacking | -11 -10 -10 ------------ Run | Yrd Mat Sub Used RIF Installer . | . . . Robots Hacked . | . . . Non-combat . | . . . Combat . | . . . Robot Hacks Applied . | . . . Relay Couplers Released . | . . . Fabnet Peak Effective % . | . . . Robots Rewired . | . . . Allies Hacked . | . . . Hacks Repelled . | . . . Allies | -11 -10 -10 -------- Run | Yrd Mat Sub Total Allies . | . . . Largest Group . | . . . Highest-Rated Group . | . . . Highest-Rated Ally . | . . . Total Orders . | . . . Ally Attacks . | . . . Total Damage . | . . . Kills . | . . . Allies Corrupted . | . . . Allies Melted . | . . . Intel | -11 -10 -10 ------- Run | Yrd Mat Sub Active Infowar (turns) 346 | . . 346 Seismic 346 | . . 346 Robot Analysis Total 1 | . 1 . Derelict Logs Recovered . | . . . Drone Launches . | . . . Drone Recoveries . | . . . Exploration | -11 -10 -10 ------------- Run | Yrd Mat Sub Turns Passed 2289 | 170 930 1189 Spaces Moved 1034 | 71 432 531 Core 3 | 3 . . Treads 1031 | 68 432 531 Legs . | . . . Wheels . | . . . Hover . | . . . Flight . | . . . Fastest Speed 50 | 50 160 160 Average Speed 159 | 155 160 160 Slowest Speed 160 | 160 160 160 Overloaded Moves . | . . . Propulsion Burnouts . | . . . Robots Hopped . | . . . Potential Cave-ins . | . . . Cave-ins Triggered . | . . . Exploration Rate (%) 33 | 3 58 38 Regions Visited 2 Branch Regions 1 Pre-discovered Areas . | . . . Known Exits Taken . | . . . Unknown Exits Taken 2 | 1 1 . Scrap Searched 6 | . . 6 Spaces Dug . | . . . Terrain Destroyed . | . . . Melee . | . . . Projectile . | . . . AOE . | . . . Terrain Rammed . | . . . Walls Destroyed . | . . . Machines Disabled . | . . . Actions | -11 -10 -10 --------- Run | Yrd Mat Sub Total 1464 | 101 600 763 Wait 245 | 1 103 141 Move 1032 | 70 431 531 Hop . | . . . Pick Up 29 | 7 9 13 Fast Attach 11 | 6 5 . Attach 8 | . . 8 Detach 4 | . 4 . Swap 12 | . 1 11 Drop 14 | . 6 8 Fire 101 | 17 35 49 Melee . | . . . Ram . | . . . Kick . | . . . Crush 6 | . 6 . Escape Stasis . | . . . Rewire . | . . . Trap 2 | . . 2 Miscellaneous . | . . . Route ------- -11/Scrapyard -10/Materials (discovered 3 exits: [*Mat] / [*Min] / [*Sub]) -10/Subcaves (discovered 1 exit: [*Mat]) History --------- Turn | Location | Event 4 | -11/Scrapyard | Discovered new exit (range 16) 171 | -11/Scrapyard | Entered Materials 316 | -10/Materials | Build established: Mutant 634 | -10/Materials | Discovered new exit (range 8) 856 | -10/Materials | Discovered new exit (range 7) 1093 | -10/Materials | Discovered new exit (range 6) 1101 | -10/Materials | Entered Subcaves 1102 | -10/Subcaves | Approached by a straggling Scientist 1131 | -10/Subcaves | Shifting Twisted Machinery released Sub. Power Source 1135 | -10/Subcaves | Shifting Twisted Machinery released Spk. Treads 1372 | -10/Subcaves | Disturbed a concealed Subdweller 1453 | -10/Subcaves | Lost 4 parts (1p1u2w) 1596 | -10/Subcaves | Ambushed by Subdwellers from Twisted Machinery 1672 | -10/Subcaves | Discovered new exit (range 12) 2002 | -10/Subcaves | A swath of the cavern ceiling suddenly collapsed 2081 | -10/Subcaves | Shifting Twisted Machinery released Sub. Laser 2274 | -10/Subcaves | Ambushed by Subdweller buried in earth 2275 | -10/Subcaves | Core integrity fell below 50% 2287 | -10/Subcaves | Core integrity fell below 20% 2290 | -10/Subcaves | Destroyed by RG-7MN(R) with Subdweller Beam Cannon Last Messages --------------- 02104_ Acquired Sub. Laser. 02143_ Dropped Med. Laser. 02143_ Acquired Battle Rifle. 02144_ Acquired 30 matter. 02147_ Dropped Med. Laser. 02149_ Dropped Lgt. Treads. 02150_ Acquired Cobbler Unit. 02154_ Acquired 20 matter. 02172_ Subatomizers dissect the Wheel. 02239_ DW-AK8(R): "SUBMAD!" 02255_ Propulsion Shielding destroyed. 02260_ 10-6D0(R) destroyed. 02274_ Lgt. Treads destroyed. 02274_ Imp. Heat Sink destroyed. 02275_ RG-7MN(R): "FREEEEDUMB!" 02282_ DW-AK8(R) affixes Scrap Shield Fragment to Scrap Shield. 02282_ Lgt. Treads destroyed. 02284_ DW-AK8(R) destroyed. 02288_ Ion Engine destroyed. Map ----- +----------------------------------------------------+ | ?????????????????????????????????????????????????? | | ?????????????????????????????????????????????????? | | ?????????????????????????????????????????????????? | | ?????????????????????????????????????????????????? | | ?????????????????????????????????????????????????? | | ?????????????????????????????????????????????????? | | ?????????????????????????????????????????????????? | | ?????????????????????????????????????????????????? | | ?????????????????????????????????????????????????? | | ?????????????????????????????????????????????????? | | ?????????????????????????????????????????????????? | | ?????????????????????????????????????????????????? | | ?????????????????????????????????????????????????? | | ?????????????????????????????????????????????????? | | ??????????????????????????##?????????????????????? | | ??????????????????##??????# ##???????????????????? | | ?????????????????## ##????# #???????????????????? | | ?????????????????# ##???# ##??????????????????? | | ?????????????????# #???## ##?????????????????? | | ??????????????????# #????# ##????????????????? | | ??????????????????# #???## ###??????????????? | | ??????????????????## ##??# ##?????????????? | | ???????????????????# ;;#####; #?????????????? | | ??????????????????## ;*=;;; #?????????????? | | ?????????????????## &%%& #?????????????? | | ?????????????????# ;;@ ##????????????? | | ?????????????????# ;;R; #????????????? | | ?????????????????## ;; ;; R #????????????? | | ??????????????????## ###### #????????????? | | ???????????????????# #????## | #????????????? | | ??????????????????# ######?# ##????????????? | | ?????????????????# ### ### ##?????????????? | | ?????????????????# # &&#[= #?????????????? | | ?????????????????# # &%[= ##?????????????? | | ????????????????# ! ### [ #?????????????? | | ?????????????? ????# #?????????????? | | ??????????????? ## ?????## #?????????????? | | ??????????????? ## #?## ?????# #?????????????? | | ?????????????? ?##???? ????## #?????????????? | | ????????????? ???????? ##???# #?????????????? | | ????????????? #???????? ????## #?????????????? | | ????????????????????????? ?????## #?????????????? | | ????????????????????????? ???#### #?????????????? | | ?????????????????????????????#" #?????????????? | | ?????????????????????????????#" ##?????????????? | | ?????????????????????## "???##" ##??????????????? | | ????????????????????# "###"" #???????????????? | | ????????????????????# " " #???????????????? | | ????????????????????# " " ##???????????????? | | ????????????????????# """" " ###??????????????? | +----------------------------------------------------+ Best States ------------- Heat Dissipation 39 Energy Generation 10 Energy Capacity 250 Matter Stores 300 Matter Capacity 300 Sight Range 16 Terrain Scan Density 10 Propulsion Shielding 33 Evasion (%) 40 Recoil Reduction 2 Item Schematics ----------------- None Robot Schematics ------------------ None Fabricated ------------ Nothing Repaired ---------- Nothing Studied --------- None Alien Tech Used ----------------- None Achievements -------------- None Challenges ------------ None Game ------ Seed TitaniumMiniMachine Manual? 0 Play Time 00:09:26 Cumulative 2196.5 hours Start 2026.03.14 @ 16:58:15 End 2026.03.14 @ 17:07:27 Sessions 1 Manual Loads 0 Difficulty Rogue Special Mode None Game No. 1389 Rogue 1385 Adventurer 4 Explorer 0 Win Type - Total 310 Types 231/14/26/11/3/1/5/10/5/4 Lore% 99 Gallery% 96 Achievement% 92 Wizard Run 0 Options --------- Layout 2 ASCII 0 Keyboard 1 Movement Vi Keybinds 0 Fullscreen 0 Font 24/Terminus Map View 59x48 Zoom Use 0% Tactical HUD 1 Map Filters NONE Filters NONE Steam 1 RUN: 17ac00d7-a332-439f-9da2-30db6d9abc10